[Event "Baku Open 2024"]
[Site "Baku"]
[Date "2024.07.01"]
[Round "3.37"]
[White "Ahmadov, Fariz"]
[Black "Putrenko, Kirill"]
[Result "1-0"]
[ECO "B40"]
[WhiteElo "2178"]
[BlackElo "2349"]
[Annotator "TA"]
[PlyCount "127"]
[EventDate "2024.06.29"]
[EventType "swiss"]
[EventCountry "AZE"]
[SourceTitle "playchess.com"]
[Source "ChessBase"]
[SourceQuality "1"]
[TimeControl "5400+30"]

{[%evp 9,126,-17,-15,-40,-45,-47,-43,-41,-33,-30,-19,-38,-41,-43,-39,-81,-22,-33,-17,-22,-15,-41,-10,-20,-10,-34,-33,-38,26,17,22,32,35,27,36,21,17,26,30,0,8,8,1,9,10,11,17,0,0,0,11,6,54,13,18,5,6,6,27,25,27,5,47,41,47,9,31,11,10,0,33,13,13,6,31,0,14,7,57,0,7,5,7,0,0,0,0,0,0,0,0,-59,6,-73,0,0,86,0,1,9,88,23,21,25,25,25,241,243,235,233,427,427,29968,29963,29976,29973,29987,29988,29999]} 1. e4 {[%emt 0:01:05]} c5 {[%emt 0:03:44]} 2. Nf3 {[%emt 0:00:22]} e6 {[%emt 0:00:14]} 3. e5 {[%emt 0:01:52]} Nc6 {[%emt 0:04:29]} 4. c3 {[%emt 0:02:03]} d6 {[%emt 0:02:16]} 5. exd6 {[%emt 0:03:38]} Bxd6 {[%emt 0:00:54]} 6. Bb5 {[%emt 0:01:20]} Nge7 {[%emt 0:02:50]} 7. O-O {[%emt 0:00:10]} a6 {[%emt 0:02:28]} 8. Ba4 {[%emt 0:00:26] Black is slightly better.} b5 {[%emt 0:04:03]} 9. Bc2 {[%emt 0:00:10]} Bb7 {[%emt 0:02:08]} 10. Re1 {[%emt 1:24:24]} Qc7 {[%emt 0:03:44]} 11. a4 {[%emt 0:00:00]} b4 {[%emt 0:05:44] Wards off Na3} 12. d4 {[%emt 0:00:00] Wards off Ne5} bxc3 {[%emt 0:04:56]} (12... Rd8 $17 {White must now prevent ...cxd4.} 13. Be4 O-O) 13. dxc5 $11 {[%emt 0:00:00]} Bxc5 {[%emt 0:03:12] Strongly threatening ...Qb6.} 14. Nxc3 {[%emt 0:00:00]} Rd8 {[%emt 0:01:30]} 15. Qe2 {[%emt 0:00:00]} Nd4 {[%emt 0:05:06]} 16. Nxd4 {[%emt 0:00:00]} Bxd4 {[%emt 0:02:19]} 17. Bg5 {[%emt 0:00:00]} (17. Bd3 {simplifies} Qb6 18. Be3 Bxe3 19. Qxe3 Qxe3 20. Rxe3 Rd4 21. Rd1) 17... Qc5 {[%emt 0:19:07]} 18. Bh4 {[%emt 0:00:00]} Bxc3 {[%emt 0:02:17]} (18... Rd7 $15) 19. bxc3 {[%emt 0:00:00]} O-O {[%emt 0:02:11][%cal Od8d7]} 20. Rab1 {[%emt 0:00:00]} Rd7 {[%emt 0:06:20] [#]} 21. Rxb7 $1 {[%emt 0:00:00]} Rxb7 {[%emt 0:00:12]} 22. Qe4 {[%emt 0:00:00][%csl Gc2][%cal Re4h7]} Ng6 {[%emt 0:01:03]} 23. Qxb7 {[%emt 0:00:00] Bxg6 would now be deadly.} Nxh4 {[%emt 0:00:58]} 24. Qxa6 {[%emt 0:00:00]} (24. Qb4 {is more complex.} Qg5 25. Be4 Qd2 26. Rb1) 24... Qxc3 {[%emt 0:00:47]} 25. Qe2 {[%emt 0:00:00]} g6 {[%emt 0:02:22]} 26. Be4 {[%emt 0:00:00]} Nf5 {[%emt 0:02:05]} 27. Bxf5 {[%emt 0:00:00]} exf5 {[%emt 0:00:10][%mdl 4096] Endgame. KQR-KQR} 28. Rb1 {[%emt 0:00:00]} Qa3 {[%emt 0:03:38]} 29. Qd1 {[%emt 0:00:00]} Qc3 {[%emt 0:04:09]} 30. Qe1 {[%emt 0:00:00]} Qc4 {[%emt 0:04:45]} (30... Qc5 $11) 31. Qb4 {[%emt 0:00:00]} Qa2 {[%emt 0:02:10]} 32. Qb3 {[%emt 0:00:00]} Qd2 {[%emt 0:00:08]} 33. Qb2 {[%emt 0:00:00]} Qd5 {[%emt 0:00:46]} 34. Qc3 {[%emt 0:00:00]} Ra8 {[%emt 0:01:08]} 35. h3 {[%emt 0:00:00][%cal Oa4a5]} Qe4 {[%emt 0:01:27]} 36. Rb4 {[%emt 0:00:00]} Qe8 {[%emt 0:00:24]} 37. Qa1 {[%emt 0:00:00]} Qd8 {[%emt 0:01:39]} 38. Rb5 {[%emt 0:00:00]} Qd7 {[%emt 0:00:11]} 39. Rb4 {[%emt 0:00:00]} Qd8 {[%emt 0:00:09]} 40. Qd4 {[%emt 0:02:45]} Qc7 {[%emt 0:01:15]} 41. Qc4 {[%emt 0:03:41]} Qd7 {[%emt 0:00:26]} (41... Rc8 {simplifies} 42. Qxc7 Rxc7 43. Rb1 Ra7) 42. Qd4 {[%emt 0:01:20]} Qc7 {[%emt 0:00:08]} 43. Rc4 {[%emt 0:02:33]} Qe7 {[%emt 0:00:54]} (43... Rd8 $11) 44. Rc1 {[%emt 0:01:34]} (44. Qc3 $14) 44... Qe8 {[%emt 0:01:04]} 45. Ra1 {[%emt 0:00:40]} h5 {[%emt 0:00:13]} 46. h4 {[%emt 0:01:18]} Ra5 {[%emt 0:00:57]} 47. Qb4 {[%emt 0:01:36]} Qa8 {[%emt 0:00:13]} 48. Ra3 {[%emt 0:00:52]} Kg7 {[%emt 0:00:20]} 49. Qd4+ {[%emt 0:00:17]} Kg8 {[%emt 0:00:16]} 50. Rd3 {[%emt 0:01:25]} (50. Rb3 $11 Kh7 51. Qb2) 50... Ra6 {[%emt 0:01:28]} (50... Rxa4 $15 51. Qb6 Ra1+ (51... Rxh4 $2 {is the wrong capture.} 52. Rd8+ $18) 52. Kh2 Qe4 53. Rd8+ Kh7) 51. Qc3 {[%emt 0:01:23]} (51. Rb3 $11 Re6 52. a5) 51... Qe8 {[%emt 0:00:28]} (51... Rxa4 $17 52. Qf6 Ra1+ 53. Kh2 Qb8+ 54. Qd6 Qxd6+ 55. Rxd6 Kg7) 52. a5 {[%emt 0:00:40]} Qb8 {[%emt 0:00:33]} (52... Kh7 $11) 53. Qd2 {[%emt 0:00:38]} ({White should try} 53. Rd7 $16 Ra8 54. Qd4) 53... Qb1+ {[%emt 0:00:15]} 54. Kh2 {[%emt 0:00:03] Threatening mate with Rd8+.} Qb8+ {[%emt 0:00:07] [#]} (54... Qa1 $1 $11 {remains equal.}) 55. g3 {[%emt 0:00:11]} ({White should play} 55. f4 $1 $16 {Rd8+ is the strong threat.} Ra8 56. a6) 55... Qe5 $1 {[%emt 0:00:58]} 56. Rd5 $36 {[%emt 0:00:28][%mdl 2048] White fights for an advantage.} Qf6 {[%emt 0:00:33]} 57. Rb5 {[%emt 0:01:16]} Ra8 $2 {[%emt 0:00:37] Loses the game.} (57... Kg7 $11) 58. Rb6 $18 {[%emt 0:00:34]} Qe5 {[%emt 0:00:31][%cal Oe5c5]} 59. a6 {[%emt 0:00:19][%cal Ba5a6,Ba6a7][%mdl 32] Hoping for Qa2.} Qc5 $2 {[%emt 0:00:22]} (59... Kg7 60. Qb4 Ra7) 60. Qb2 {[%emt 0:00:31]} Qc7 {[%emt 0:00:37] Wards off a7} (60... Qc8 $18 61. Qa2 Kf8) 61. Rb7 {[%emt 0:00:21] White mates.} Qc5 {[%emt 0:00:31] [#]} 62. a7 $1 {[%emt 0:00:43][%mdl 512]} Qd5 {[%emt 0:00:17]} (62... Rf8 63. Qb6) 63. Rb8+ {[%emt 0:00:16]} Kh7 {[%emt 0:00:12]} 64. Qh8# {[%emt 0:00:08] Weighted Error Value: White=0.14 (very precise) /Black=0.37.  Loses game:     	---       	Black=1      Mistake:       	White=5     	Black=10     Inaccurate:     	White=3     	Black=2      OK:         	White=16    	Black=19     Best:        	White=7     	Black=1      Strong:       	---       	Black=1      Brilliant:      	White=1     	---} 1-0

[Event "Baku Open 2024"]
[Site "Baku"]
[Date "2024.07.01"]
[Round "3.38"]
[White "Zhukova, Natalia"]
[Black "Gurbanov, Ismayil"]
[Result "1-0"]
[ECO "D35"]
[WhiteElo "2306"]
[BlackElo "2163"]
[Annotator "TA"]
[PlyCount "45"]
[EventDate "2024.06.29"]
[EventType "swiss"]
[EventCountry "AZE"]
[SourceTitle "playchess.com"]
[Source "ChessBase"]
[SourceQuality "1"]
[TimeControl "5400+30"]

{[%evp 17,45,16,18,8,21,16,42,15,67,66,63,49,58,54,62,73,79,47,150,129,131,128,400,384,396,397,672,698,916,257]} 1. d4 {[%emt 0:00:03]} Nf6 {[%emt 0:06:23]} 2. c4 {[%emt 0:00:10]} e6 {[%emt 0:00:04]} 3. Nc3 {[%emt 0:00:14]} d5 {[%emt 0:00:13]} 4. cxd5 {[%emt 0:00:50]} exd5 {[%emt 0:00:04]} 5. Bg5 {[%emt 0:00:10]} Nbd7 {[%emt 0:00:05]} 6. e3 {[%emt 0:00:18]} Be7 {[%emt 0:00:06]} 7. Bd3 {[%emt 0:00:31]} O-O {[%emt 0:00:09]} 8. Nge2 {[%emt 0:01:19]} Re8 {[%emt 0:00:10]} 9. O-O {[%emt 0:01:53]} Nf8 {[%emt 0:00:15]} 10. f3 {[%emt 0:20:37]} Ne6 {[%emt 0:00:58]} 11. Bh4 {[%emt 0:00:35]} c5 {[%emt 0:04:22]} 12. Kh1 {[%emt 0:12:09] White is slightly better.} g6 {[%emt 0:25:33]} (12... cxd4 $11 13. Nxd4 Nxd4 14. exd4 Nh5 15. Bxe7 Rxe7) 13. dxc5 {[%emt 0:03:17]} Nxc5 {[%emt 0:01:16]} 14. Bb5 {[%emt 0:01:03]} Bd7 {[%emt 0:01:06]} 15. Bxd7 {[%emt 0:18:37]} Ncxd7 {[%emt 0:01:47]} 16. Nf4 {[%emt 0:09:51]} (16. Nxd5 $2 Nxd5 17. Qxd5 Bxh4 $19) 16... Nb6 {[%emt 0:02:12]} 17. Qb3 {[%emt 0:02:25] White has more active pieces.} Nc4 {[%emt 0:14:36]} ({Black should try} 17... h6 $1 $14) 18. Bxf6 $16 {[%emt 0:00:44]} (18. Qxb7 Nxe3 19. Bxf6 Bxf6 $17) 18... Bxf6 {[%emt 0:00:38]} 19. Ncxd5 {[%emt 0:00:59]} (19. Qxb7 Nxe3 20. Rfe1 Bxc3 21. bxc3 d4 22. cxd4 Qxd4 $17) 19... Nd2 {[%emt 0:00:53][%mdl 8192] [#] This costs Black the game.} (19... Na5 $16 {might work better.} 20. Nxf6+ Qxf6) 20. Qb5 $18 {[%emt 0:01:05]} (20. Qxb7 Nxf1 21. Rxf1 Rb8 22. Qxa7 Bxb2 $17 (22... Rxb2 $2 23. Rd1 $19)) 20... Be5 {[%emt 0:27:30]} 21. Rf2 {[%emt 0:11:38]} g5 $2 {[%emt 0:04:53]} (21... a6 22. Qd3 (22. Qxb7 Nc4 $16) 22... Nxf3 (22... Bxb2 $2 23. Rd1 $18) 23. Rxf3 (23. gxf3 Qh4 $18) 23... b5) 22. Nh5 {[%emt 0:03:12] Excellent horsemanship.} ({Worse is} 22. Qxb7 Rb8 23. Qc6 (23. Qxa7 $2 Nc4 $17) 23... gxf4 24. Rxd2 fxe3 $17) 22... g4 {[%emt 0:02:02] [#]} 23. Qxe8+ $2 {[%emt 0:00:48] Weighted Error Value: White=0.05 (flawless) /Black=0.83.  Loses game:     	---       	Black=1      Mistake:       	---       	Black=3      Inaccurate:     	White=2     	Black=2      OK:         	White=7     	Black=1      Best:        	White=2     	---} 1-0

[Event "Baku Open 2024"]
[Site "Baku"]
[Date "2024.07.01"]
[Round "3.39"]
[White "Musayev, Eldar"]
[Black "Akhilbay, Imangali"]
[Result "0-1"]
[ECO "D76"]
[WhiteElo "2129"]
[BlackElo "2303"]
[Annotator "TA"]
[PlyCount "46"]
[EventDate "2024.06.29"]
[EventType "swiss"]
[EventCountry "AZE"]
[SourceTitle "playchess.com"]
[Source "ChessBase"]
[SourceQuality "1"]
[TimeControl "5400+30"]

{[%evp 17,46,23,27,-11,-16,-8,-18,-15,-16,-18,-25,-43,-12,-11,-18,-34,-27,-131,-132,-135,-116,-127,-76,-74,-87,-141,-153,-415,-431,-446,-441]} 1. Nf3 {[%emt 0:00:31]} Nf6 {[%emt 0:00:15]} 2. c4 {[%emt 0:00:52]} g6 {[%emt 0:00:08]} 3. g3 {[%emt 0:01:16]} Bg7 {[%emt 0:00:06]} 4. Bg2 {[%emt 0:00:02]} O-O {[%emt 0:00:13]} 5. O-O {[%emt 0:00:03]} d5 {[%emt 0:00:12]} 6. d4 {[%emt 0:01:39]} Nc6 {[%emt 0:00:13]} 7. cxd5 {[%emt 0:01:14]} Nxd5 {[%emt 0:00:07]} 8. Nc3 {[%emt 0:05:27]} Nb6 {[%emt 0:00:55]} 9. e3 {[%emt 0:05:06]} a5 {[%emt 0:01:52]} 10. Na4 {[%emt 0:08:26]} Nxa4 {[%emt 0:08:09]} 11. Qxa4 {[%emt 0:00:02]} e5 {[%emt 0:01:26]} 12. dxe5 {[%emt 0:14:35] The position is equal.} Nxe5 {[%emt 0:01:07]} 13. Nxe5 {[%emt 0:00:41]} Bxe5 {[%emt 0:00:03]} 14. Rd1 {[%emt 0:00:09]} Qe7 {[%emt 0:04:27]} 15. Rb1 {[%emt 0:09:47]} Bf5 {[%emt 0:19:01]} 16. e4 {[%emt 0:10:57]} Bg4 {[%emt 0:02:04]} 17. f3 {[%emt 0:00:22]} (17. Bh6 $11) 17... Qc5+ $17 {[%emt 0:05:29]} 18. Kh1 {[%emt 0:00:10]} Be6 {[%emt 0:00:10] Black is more active.} 19. Bh6 {[%emt 0:05:10] [#]} Rfd8 {[%emt 0:03:44]} ({Black should try} 19... Bxg3 $1 {[%cal Oc5h5] Hoping for ...Qh5!} 20. hxg3 (20. Bxf8 $2 Qh5 $19) 20... Qh5+ 21. Kg1 Qxh6) 20. f4 {[%emt 0:10:16]} Bd4 {[%emt 0:05:03]} 21. Rbc1 {[%emt 0:09:00] Against b5} (21. e5 $142) 21... b5 {[%emt 0:01:14]} 22. Qc2 {[%emt 0:08:17]} (22. Rxc5 $17 bxa4 23. Rxc7) 22... Qxc2 $19 {[%emt 0:00:52]} 23. Rxc2 {[%emt 0:00:02]} Bg7 {[%emt 0:00:09] Weighted Error Value: White=0.50/Black=0.08 (flawless) .  Loses game:     	White=1     	---        Mistake:       	White=2     	Black=1      Inaccurate:     	---       	Black=1      OK:         	White=2     	Black=7      Best:        	White=1     	Black=3} (23... Bxa2 $2 24. Bg5 Bb3 25. Bxd8 Rxd8 (25... Bxc2 $2 {perishes.} 26. Rxd4 Rc8 27. Be7 $18) 26. Rcd2 Bxd1 27. Rxd1 $19) 0-1

[Event "Baku Open 2024"]
[Site "Baku"]
[Date "2024.07.01"]
[Round "3.40"]
[White "Novozhilov, Semen"]
[Black "Abdinova, Narmin"]
[Result "1-0"]
[ECO "A67"]
[WhiteElo "2288"]
[BlackElo "2121"]
[Annotator "NA RC"]
[PlyCount "63"]
[EventDate "2024.06.29"]
[EventType "swiss"]
[EventCountry "AZE"]
[SourceTitle "playchess.com"]
[Source "ChessBase"]
[SourceQuality "1"]
[TimeControl "5400+30"]

1. d4 {[%emt 0:00:02]} Nf6 {[%emt 0:05:29]} 2. c4 {[%emt 0:00:06]} c5 {[%emt 0:00:22]} 3. d5 {[%emt 0:00:09]} e6 {[%emt 0:00:18]} 4. Nc3 {[%emt 0:00:18]} exd5 {[%emt 0:00:30]} 5. cxd5 {[%emt 0:00:08]} d6 {[%emt 0:00:05]} 6. e4 {[%emt 0:00:12]} g6 {[%emt 0:00:23]} 7. f4 {[%emt 0:00:22]} Bg7 {[%emt 0:00:56]} 8. Bb5+ {[%emt 0:00:26]} Bd7 {[%emt 0:04:07]} 9. e5 {[%emt 0:09:52]} Nh5 {[%emt 0:12:05]} 10. Nf3 {[%emt 0:16:59]} O-O {[%emt 0:00:14]} 11. Bxd7 {[%emt 0:01:13]} Nxd7 {[%emt 0:19:09]} 12. g4 {[%emt 0:05:55]} dxe5 {[%emt 0:00:03]} 13. fxe5 {[%emt 0:01:49]} Nxe5 {[%emt 0:01:23]} 14. gxh5 {[%emt 0:00:10]} Nxf3+ {[%emt 0:01:05]} 15. Qxf3 {[%emt 0:00:07]} Qh4+ {[%emt 0:03:51]} 16. Kf1 {[%emt 0:09:54]} Rae8 {[%emt 0:11:29]} 17. Bf4 {[%emt 0:14:40]} g5 {[%emt 0:10:08]} 18. Bg3 {[%emt 0:10:59]} Qh3+ {[%emt 0:20:08]} 19. Qg2 {[%emt 0:00:33]} Qf5+ {[%emt 0:02:22]} 20. Kg1 {[%emt 0:00:13]} Bd4+ {[%emt 0:01:48]} 21. Bf2 {[%emt 0:00:05]} Bxc3 {[%emt 0:00:34]} 22. bxc3 {[%emt 0:00:07]} Re2 {[%emt 0:00:28]} 23. Rf1 {[%emt 0:09:20]} Rfe8 {[%emt 0:01:15]} 24. h4 {[%emt 0:00:29]} h6 {[%emt 0:03:46]} 25. Rh3 {[%emt 0:01:08]} R8e4 {[%emt 0:00:23]} 26. d6 {[%emt 0:18:14]} g4 {[%emt 0:00:26]} 27. Rg3 {[%emt 0:00:00]} Qd7 {[%emt 0:00:24]} 28. Qf3 {[%emt 0:00:00]} c4 {[%emt 0:00:47]} 29. Bd4 {[%emt 0:00:00]} Qe6 {[%emt 0:00:30]} 30. d7 {[%emt 0:00:00]} Qxd7 {[%emt 0:00:30]} 31. Qf6 {[%emt 0:00:00]} Kf8 {[%emt 0:00:31]} 32. Qg7+ {[%emt 0:00:00]} 1-0

[Event "Baku Open 2024"]
[Site "Baku"]
[Date "2024.07.01"]
[Round "3.41"]
[White "Ghoreishi Amiri, Seyed Kian"]
[Black "Dolgun, Can"]
[Result "0-1"]
[ECO "C56"]
[WhiteElo "2126"]
[BlackElo "2264"]
[Annotator "TA"]
[PlyCount "82"]
[EventDate "2024.06.29"]
[EventType "swiss"]
[EventCountry "AZE"]
[SourceTitle "playchess.com"]
[Source "ChessBase"]
[SourceQuality "1"]
[TimeControl "5400+30"]

{[%evp 22,82,-6,0,0,-1,0,-22,10,-15,-20,-6,-6,-13,-6,-82,-50,-121,-142,-122,-70,-70,-62,-67,-63,-143,-143,-246,0,-352,-338,-308,-327,-652,-733,-749,-646,-1330,-1091,-1499,-1558,-1538,-1459,-3436,-2757,-29980,-29981,-29982,-29983,-29983,-29984,-29985,-29986,-29986,-29987,-29986,-29986,-29986,-29987,-29987,-29988,-29993,-29994]} 1. e4 {[%emt 0:00:36]} e5 {[%emt 0:00:02]} 2. Nf3 {[%emt 0:00:10]} Nc6 {[%emt 0:00:02]} 3. Bc4 {[%emt 0:00:11]} Nf6 {[%emt 0:00:03]} 4. d4 {[%emt 0:00:05]} exd4 {[%emt 0:00:12]} 5. e5 {[%emt 0:00:05]} d5 {[%emt 0:00:22]} 6. Bb5 {[%emt 0:00:09]} Ne4 {[%emt 0:01:09]} 7. Nxd4 {[%emt 0:00:11]} Bd7 {[%emt 0:00:06]} 8. Bxc6 {[%emt 0:00:02]} bxc6 {[%emt 0:00:11]} 9. O-O {[%emt 0:00:08]} Bc5 {[%emt 0:00:37]} 10. f3 {[%emt 0:00:47]} Ng5 {[%emt 0:00:14]} 11. f4 {[%emt 0:00:07]} Ne4 {[%emt 0:00:23]} 12. Be3 {[%emt 0:00:06]} Bb6 {[%emt 0:02:14]} 13. c3 {[%emt 0:04:31]} c5 {[%emt 0:03:39]} 14. Ne2 {[%emt 0:01:58]} Bg4 {[%emt 0:07:31] The position is equal.} (14... c6 {simplifies} 15. Nd2 Nxd2 16. Qxd2 O-O) 15. h3 {[%emt 0:06:19]} c4 {[%emt 0:22:52]} 16. Bxb6 {[%emt 0:00:47] Bd4 is the strong threat.} Bxe2 {[%emt 0:00:22]} 17. Qxe2 {[%emt 0:00:27]} axb6 {[%emt 0:00:22]} 18. Qg4 {[%emt 0:02:07] Inhibits Ng3.} (18. Rd1 $11 {remains equal.}) 18... Qe7 {[%emt 0:06:09]} 19. Na3 {[%emt 0:03:32]} (19. Qd1 $15) 19... h5 $1 $17 {[%emt 0:01:59]} 20. Qd1 {[%emt 0:02:35] [#]} Nxc3 {[%emt 0:01:40][%mdl 512] Black is more active.} 21. bxc3 $15 {[%emt 0:00:24] Threatens to win with Nc2.} Qc5+ {[%emt 0:00:10]} (21... Qxa3 22. Qxd5 Qc5+ 23. Qxc5 bxc5 24. Rad1) 22. Kh1 {[%emt 0:00:10]} Rxa3 {[%emt 0:00:10]} 23. f5 {[%emt 0:01:22]} ({White should play} 23. Qf3 $1 $15) 23... Rxc3 $17 {[%emt 0:07:17]} 24. e6 {[%emt 0:04:00]} (24. Qa4+ $17 Ke7 25. f6+ gxf6 26. Rxf6) 24... O-O $2 {[%emt 0:03:52]} (24... Ra3 $19 {White must now prevent ...b5.} 25. Re1 f6) 25. f6 $2 {[%emt 0:02:45][%mdl 8192] [#]} (25. Qxh5 $11 d4 26. Qg4) 25... d4 $1 $19 {[%emt 0:09:51]} (25... fxe6 $2 {is the wrong capture.} 26. Qxh5 Rxf6 27. Rxf6 gxf6 28. Qg6+ Kf8 29. Qxf6+ Ke8 30. Qh8+ (30. Qxc3 d4 $18) (30. Qxe6+ Qe7 $18) 30... Kd7 31. Qg7+ (31. Qxc3 d4 $18) 31... Kd6 32. Qxc3 $18) 26. fxg7 {[%emt 0:03:40]} Kxg7 {[%emt 0:00:25]} 27. Rxf7+ {[%emt 0:01:04]} (27. Qe1 Re3 28. Qh4) 27... Rxf7 {[%emt 0:00:09]} 28. exf7 {[%emt 0:00:05]} Kxf7 {[%emt 0:01:32][%mdl 4096] Endgame. KQR-KQR} 29. Qe2 {[%emt 0:02:08]} Re3 {[%emt 0:02:20]} 30. Qf2+ {[%emt 0:01:28]} Ke7 {[%emt 0:01:29]} 31. Rf1 {[%emt 0:02:29]} Kd7 {[%emt 0:01:03]} 32. Qc2 {[%emt 0:01:25]} d3 {[%emt 0:02:31]} 33. Qa4+ {[%emt 0:00:38]} b5 {[%emt 0:01:11] Black mates.} 34. Qa8 {[%emt 0:01:17]} d2 {[%emt 0:02:05]} 35. Rf7+ {[%emt 0:00:31]} Re7 {[%emt 0:00:24]} 36. Rxe7+ {[%emt 0:00:12]} Kxe7 {[%emt 0:02:16] KQ-KQ} 37. Qe4+ {[%emt 0:00:07]} Kd7 {[%emt 0:00:22]} 38. Qh7+ {[%emt 0:00:15]} Qe7 {[%emt 0:03:24]} 39. Qf5+ {[%emt 0:00:09]} Qe6 {[%emt 0:00:25]} 40. Qxb5+ {[%emt 0:00:06]} Kc8 {[%emt 0:00:13]} 41. Qb1 {[%emt 0:00:02]} Qe1+ {[%emt 0:00:06] Weighted Error Value: White=1.35/Black=0.22 (precise) .  Loses game:     	White=1     	---        Missed win:     	---       	Black=1      Mistake:       	White=5     	Black=1      Inaccurate:     	---       	Black=2      OK:         	White=4     	Black=3      Best:        	---       	Black=3      Strong:       	---       	Black=2} 0-1

[Event "Baku Open 2024"]
[Site "Baku"]
[Date "2024.07.01"]
[Round "3.42"]
[White "Bharadia Yash"]
[Black "Guliev, Logman"]
[Result "1-0"]
[ECO "B63"]
[WhiteElo "2100"]
[BlackElo "2257"]
[Annotator "RC"]
[PlyCount "97"]
[EventDate "2024.06.29"]
[EventType "swiss"]
[EventCountry "AZE"]
[SourceTitle "playchess.com"]
[Source "ChessBase"]
[SourceQuality "1"]
[TimeControl "5400+30"]

1. e4 {[%emt 0:00:21]} c5 {[%emt 0:00:03]} 2. Nf3 {[%emt 0:00:05]} d6 {[%emt 0:00:07]} 3. d4 {[%emt 0:00:02]} cxd4 {[%emt 0:00:05]} 4. Nxd4 {[%emt 0:00:02]} Nf6 {[%emt 0:00:08]} 5. Nc3 {[%emt 0:00:03]} Nc6 {[%emt 0:00:10]} 6. Bg5 {[%emt 0:00:05]} e6 {[%emt 0:00:05]} 7. Qd2 {[%emt 0:00:03]} Be7 {[%emt 0:00:19]} 8. O-O-O {[%emt 0:00:06]} Nxd4 {[%emt 0:00:06]} 9. Qxd4 {[%emt 0:00:03]} O-O {[%emt 0:00:09]} 10. h4 {[%emt 0:00:02]} Qa5 {[%emt 0:00:11]} 11. Qe3 {[%emt 0:00:04]} a6 {[%emt 0:00:29]} 12. f4 {[%emt 0:04:00]} Rd8 {[%emt 0:10:41]} 13. Be2 {[%emt 0:02:04]} Kh8 {[%emt 0:10:23]} 14. e5 {[%emt 0:05:36]} dxe5 {[%emt 0:10:12]} 15. fxe5 {[%emt 0:02:02]} Ng8 {[%emt 0:00:56]} 16. Bxe7 {[%emt 0:17:54]} Nxe7 {[%emt 0:01:33]} 17. Qf4 {[%emt 0:05:23]} Ng6 {[%emt 0:18:48]} 18. Rxd8+ {[%emt 0:10:28]} Qxd8 {[%emt 0:01:40]} 19. Qxf7 {[%emt 0:03:02]} Bd7 {[%emt 0:00:48]} 20. Ne4 {[%emt 0:06:39]} Qe8 {[%emt 0:20:33]} 21. Qf2 {[%emt 0:07:18]} Nxe5 {[%emt 0:00:48]} 22. Qg3 {[%emt 0:01:18]} Nf7 {[%emt 0:01:54]} 23. Bd3 {[%emt 0:12:01]} e5 {[%emt 0:02:08]} 24. Re1 {[%emt 0:00:31]} Qe7 {[%emt 0:02:21]} 25. Ng5 {[%emt 0:00:51]} Nxg5 {[%emt 0:01:21]} 26. hxg5 {[%emt 0:01:27]} Re8 {[%emt 0:01:45]} 27. Qh4 {[%emt 0:06:06]} h6 {[%emt 0:02:40]} 28. Rh1 {[%emt 0:01:11]} e4 {[%emt 0:03:14]} 29. Be2 {[%emt 0:00:51]} Kh7 {[%emt 0:05:18]} 30. Bh5 {[%emt 0:04:11]} g6 {[%emt 0:02:42]} 31. Be2 {[%emt 0:00:12]} Qg7 {[%emt 0:00:55]} 32. Qf4 {[%emt 0:03:25]} h5 {[%emt 0:00:56]} 33. g4 {[%emt 0:00:04]} Qe5 {[%emt 0:02:05]} 34. Qe3 {[%emt 0:02:27]} Rf8 {[%emt 0:00:21]} 35. Kb1 {[%emt 0:01:54]} Qf4 {[%emt 0:01:01]} 36. Qg1 {[%emt 0:02:44]} Qxg5 {[%emt 0:00:17]} 37. Qd1 {[%emt 0:00:08]} Rd8 {[%emt 0:00:55]} 38. gxh5 {[%emt 0:00:33]} Bf5 {[%emt 0:00:34]} 39. Qf1 {[%emt 0:01:50]} Kg7 {[%emt 0:00:32]} 40. Qe1 {[%emt 0:01:22]} Rd2 {[%emt 0:00:19]} 41. hxg6 {[%emt 0:00:59]} e3 {[%emt 0:00:47]} 42. Ka1 {[%emt 0:01:01]} Rxc2 {[%emt 0:00:23]} 43. Qb4 {[%emt 0:00:37]} b5 {[%emt 0:00:47]} 44. Qd4+ {[%emt 0:00:51]} Kxg6 {[%emt 0:00:06]} 45. Bd3 {[%emt 0:00:31]} Rd2 {[%emt 0:01:25]} 46. Qd6+ {[%emt 0:00:23]} Kf7 {[%emt 0:00:00]} 47. Qd5+ {[%emt 0:00:36]} Kg6 {[%emt 0:00:28]} 48. Qe6+ {[%emt 0:00:31]} Kg7 {[%emt 0:00:04]} 49. Bxf5 {[%emt 0:00:12]} 1-0